[Event "*** Titled Tuesday Blitz"]
[Site "Chess.com"]
[Date "2020.05.19"]
[Round "7"]
[White "ChelsieMonica"]
[Black "IljaJoke"]
[Result "1-0"]
[WhiteElo "2372"]
[BlackElo "2522"]
[TimeControl "180+1"]
[EndTime "13:20:36 PDT"]
[Termination "ChelsieMonica won on time"]

1. c4 {[%clk 0:03:00.9]} 1... g6 {[%clk 0:02:59.4]} 2. Nf3 {[%clk 0:02:59.7]}
2... Bg7 {[%clk 0:02:58.4]} 3. Nc3 {[%clk 0:02:59.7]} 3... c5 {[%clk 0:02:56.5]}
4. e3 {[%clk 0:03:00.1]} 4... Nf6 {[%clk 0:02:54.3]} 5. Be2 {[%clk 0:02:54.2]}
5... O-O {[%clk 0:02:53.8]} 6. O-O {[%clk 0:02:54.5]} 6... d5 {[%clk 0:02:51.2]}
7. cxd5 {[%clk 0:02:54.2]} 7... Nxd5 {[%clk 0:02:52.1]} 8. d4 {[%clk 0:02:52.8]}
8... cxd4 {[%clk 0:02:49.2]} 9. Nxd4 {[%clk 0:02:53.6]} 9... Nxc3 {[%clk
0:02:47.6]} 10. bxc3 {[%clk 0:02:54.5]} 10... Nc6 {[%clk 0:02:46.3]} 11. Ba3
{[%clk 0:02:52.9]} 11... Bd7 {[%clk 0:02:35.4]} 12. Rb1 {[%clk 0:02:50.9]} 12...
Rb8 {[%clk 0:02:28.8]} 13. Bf3 {[%clk 0:02:22.1]} 13... Re8 {[%clk 0:01:52.4]}
14. Nxc6 {[%clk 0:01:16.4]} 14... Bxc6 {[%clk 0:01:52]} 15. Bxc6 {[%clk
0:01:16.4]} 15... bxc6 {[%clk 0:01:51.9]} 16. Rxb8 {[%clk 0:01:11.3]} 16... Qxb8
{[%clk 0:01:51]} 17. Qd7 {[%clk 0:01:10.4]} 17... Qc8 {[%clk 0:01:45.7]} 18.
Qxa7 {[%clk 0:01:07.9]} 18... Qa8 {[%clk 0:01:31.5]} 19. Qc5 {[%clk 0:01:05.4]}
19... e6 {[%clk 0:01:25.5]} 20. Bb4 {[%clk 0:01:00.3]} 20... Qa6 {[%clk
0:01:21]} 21. Qg5 {[%clk 0:00:45]} 21... Qxa2 {[%clk 0:01:15.1]} 22. h4 {[%clk
0:00:45.2]} 22... h5 {[%clk 0:01:12.7]} 23. Rd1 {[%clk 0:00:44]} 23... Qc4
{[%clk 0:01:08.4]} 24. Rd7 {[%clk 0:00:40.7]} 24... Bxc3 {[%clk 0:01:01]} 25.
Bd6 {[%clk 0:00:33.6]} 25... Qd5 {[%clk 0:00:46.3]} 26. Qg3 {[%clk 0:00:24.9]}
26... Ra8 {[%clk 0:00:37.7]} 27. Kh2 {[%clk 0:00:21.6]} 27... Bg7 {[%clk
0:00:34.9]} 28. e4 {[%clk 0:00:19.1]} 28... Qxe4 {[%clk 0:00:32.9]} 29. Bb8
{[%clk 0:00:18.7]} 29... Rxb8 {[%clk 0:00:30.1]} 30. Qxb8+ {[%clk 0:00:18.1]}
30... Kh7 {[%clk 0:00:29.1]} 31. g3 {[%clk 0:00:17.6]} 31... Qf3 {[%clk
0:00:20.4]} 32. Qa7 {[%clk 0:00:17.9]} 32... Qc3 {[%clk 0:00:07.6]} 33. Rxf7
{[%clk 0:00:16.9]} 33... c5 {[%clk 0:00:08]} 34. Qe7 {[%clk 0:00:16]} 34... Qe5
{[%clk 0:00:07.8]} 35. Qc7 {[%clk 0:00:15.6]} 35... Qd4 {[%clk 0:00:06]} 36. Kg2
{[%clk 0:00:15.6]} 36... c4 {[%clk 0:00:06.2]} 37. Rd7 {[%clk 0:00:14.7]} 37...
Qe4+ {[%clk 0:00:04.7]} 38. Kh2 {[%clk 0:00:14.9]} 38... Qe5 {[%clk 0:00:04.8]}
39. Qxe5 {[%clk 0:00:14.8]} 1-0

[Event "*** Titled Tuesday Blitz"]
[Site "Chess.com"]
[Date "2020.05.19"]
[Round "7"]
[White "ValeriyGrinev"]
[Black "hellokostya"]
[Result "0-1"]
[WhiteElo "2531"]
[BlackElo "2415"]
[TimeControl "180+1"]
[EndTime "13:20:37 PDT"]
[Termination "hellokostya won by resignation"]

1. c4 {[%clk 0:03:00.9]} 1... g6 {[%clk 0:02:59]} 2. Nc3 {[%clk 0:02:59.6]} 2...
Bg7 {[%clk 0:02:58.5]} 3. d4 {[%clk 0:02:57.6]} 3... Nf6 {[%clk 0:02:58.4]} 4.
e4 {[%clk 0:02:57.8]} 4... d6 {[%clk 0:02:58.3]} 5. Be2 {[%clk 0:02:58]} 5...
O-O {[%clk 0:02:57.9]} 6. Nf3 {[%clk 0:02:58.6]} 6... e5 {[%clk 0:02:56.4]} 7.
O-O {[%clk 0:02:59.1]} 7... Nc6 {[%clk 0:02:55.8]} 8. d5 {[%clk 0:02:59.7]} 8...
Ne7 {[%clk 0:02:55.6]} 9. b4 {[%clk 0:03:00.4]} 9... a5 {[%clk 0:02:54.3]} 10.
Ba3 {[%clk 0:02:59.7]} 10... axb4 {[%clk 0:02:50.3]} 11. Bxb4 {[%clk 0:03:00.6]}
11... b6 {[%clk 0:02:50.6]} 12. a4 {[%clk 0:02:55.1]} 12... Re8 {[%clk
0:02:49.5]} 13. Re1 {[%clk 0:02:47.6]} 13... h6 {[%clk 0:02:16.2]} 14. Bf1
{[%clk 0:02:43.9]} 14... Bf8 {[%clk 0:02:09.5]} 15. Qd3 {[%clk 0:02:39]} 15...
c5 {[%clk 0:01:59.2]} 16. dxc6 {[%clk 0:02:37.7]} 16... Nxc6 {[%clk 0:01:58.8]}
17. Ba3 {[%clk 0:02:38.6]} 17... Bg4 {[%clk 0:01:57.4]} 18. Bb2 {[%clk
0:02:00.8]} 18... Rc8 {[%clk 0:01:35.8]} 19. Nd5 {[%clk 0:01:57]} 19... Nxd5
{[%clk 0:01:24.9]} 20. cxd5 {[%clk 0:01:57.9]} 20... Nb4 {[%clk 0:01:17.4]} 21.
Qb3 {[%clk 0:01:51.9]} 21... Nc2 {[%clk 0:01:15.1]} 22. Bb5 {[%clk 0:01:52.2]}
22... Nxa1 {[%clk 0:01:12.2]} 23. Rxa1 {[%clk 0:01:49.3]} 23... Bd7 {[%clk
0:01:09.4]} 24. Nd2 {[%clk 0:01:41.8]} 24... Bxb5 {[%clk 0:01:03.1]} 25. axb5
{[%clk 0:01:36.7]} 25... Qc7 {[%clk 0:00:45.1]} 26. g3 {[%clk 0:01:19]} 26...
Qc2 {[%clk 0:00:40.2]} 27. Qb4 {[%clk 0:01:19.3]} 27... Qd3 {[%clk 0:00:29.3]}
28. Re1 {[%clk 0:00:38.3]} 28... Rc2 {[%clk 0:00:27.8]} 29. Nf1 {[%clk
0:00:28.2]} 29... Qc4 {[%clk 0:00:25.9]} 30. Qa3 {[%clk 0:00:22.1]} 30... Qxb5
{[%clk 0:00:25.1]} 31. Bc1 {[%clk 0:00:21.2]} 31... Rec8 {[%clk 0:00:23.9]} 32.
Ne3 {[%clk 0:00:19.2]} 32... R2c3 {[%clk 0:00:21.6]} 33. Qa1 {[%clk 0:00:19.4]}
33... Qd3 {[%clk 0:00:20.5]} 34. Ng4 {[%clk 0:00:18.4]} 34... h5 {[%clk
0:00:18.8]} 35. Nf6+ {[%clk 0:00:17.8]} 35... Kg7 {[%clk 0:00:16.6]} 36. Nd7
{[%clk 0:00:18.4]} 36... Qb5 {[%clk 0:00:12.4]} 37. Bd2 {[%clk 0:00:15.4]} 37...
Rc2 {[%clk 0:00:10.8]} 38. Nxf8 {[%clk 0:00:14.2]} 38... Rxd2 {[%clk 0:00:08.5]}
39. Qa3 {[%clk 0:00:09.9]} 39... Kxf8 {[%clk 0:00:07]} 40. Qxd6+ {[%clk
0:00:10.4]} 40... Kg8 {[%clk 0:00:07.4]} 41. Qxe5 {[%clk 0:00:11]} 41... Rdc2
{[%clk 0:00:06.6]} 42. d6 {[%clk 0:00:11.1]} 42... Qxe5 {[%clk 0:00:05.9]} 0-1

[Event "*** Titled Tuesday Blitz"]
[Site "Chess.com"]
[Date "2020.05.19"]
[Round "7"]
[White "Caterpiller35"]
[Black "bazar-wokzal"]
[Result "1-0"]
[WhiteElo "2373"]
[BlackElo "2497"]
[TimeControl "180+1"]
[EndTime "13:20:37 PDT"]
[Termination "Caterpiller35 won by checkmate"]

1. d4 {[%clk 0:03:00]} 1... Nf6 {[%clk 0:02:59.1]} 2. Bg5 {[%clk 0:03:00.4]}
2... e6 {[%clk 0:02:58.3]} 3. e4 {[%clk 0:03:00.5]} 3... h6 {[%clk 0:02:58.6]}
4. Bxf6 {[%clk 0:03:00.3]} 4... Qxf6 {[%clk 0:02:58.5]} 5. c3 {[%clk 0:03:01.2]}
5... c5 {[%clk 0:02:52.8]} 6. Nf3 {[%clk 0:02:58]} 6... g5 {[%clk 0:02:50.4]} 7.
Bd3 {[%clk 0:02:44.6]} 7... g4 {[%clk 0:02:49.3]} 8. Ne5 {[%clk 0:02:35.5]} 8...
h5 {[%clk 0:02:49.3]} 9. O-O {[%clk 0:02:34.4]} 9... Nc6 {[%clk 0:02:48.1]} 10.
Nxc6 {[%clk 0:02:28.5]} 10... bxc6 {[%clk 0:02:47.1]} 11. e5 {[%clk 0:02:22.6]}
11... Qg7 {[%clk 0:02:44.7]} 12. Nd2 {[%clk 0:02:22.2]} 12... cxd4 {[%clk
0:02:42.8]} 13. cxd4 {[%clk 0:02:19.9]} 13... c5 {[%clk 0:02:41.8]} 14. Ne4
{[%clk 0:02:16]} 14... Be7 {[%clk 0:02:34]} 15. Nxc5 {[%clk 0:01:32.6]} 15...
Bxc5 {[%clk 0:02:32.6]} 16. dxc5 {[%clk 0:01:33.5]} 16... Qxe5 {[%clk
0:02:32.3]} 17. c6 {[%clk 0:01:23.6]} 17... dxc6 {[%clk 0:02:22]} 18. Re1 {[%clk
0:01:23.1]} 18... Qd5 {[%clk 0:02:11.2]} 19. Qc2 {[%clk 0:01:12.9]} 19... Bd7
{[%clk 0:01:57.3]} 20. Be4 {[%clk 0:01:00.4]} 20... Qg5 {[%clk 0:01:55.5]} 21.
Rad1 {[%clk 0:00:58.1]} 21... Rc8 {[%clk 0:01:46.8]} 22. Rd6 {[%clk 0:00:45]}
22... c5 {[%clk 0:01:09.6]} 23. Red1 {[%clk 0:00:42.5]} 23... Rc7 {[%clk
0:00:55.1]} 24. Rxd7 {[%clk 0:00:38.4]} 24... Rxd7 {[%clk 0:00:54.7]} 25. Qa4
{[%clk 0:00:37.3]} 25... O-O {[%clk 0:00:37.7]} 26. Qxd7 {[%clk 0:00:36.7]}
26... Qe5 {[%clk 0:00:35.5]} 27. Bb1 {[%clk 0:00:32.1]} 27... Qxb2 {[%clk
0:00:33.5]} 28. Qxa7 {[%clk 0:00:29.4]} 28... Qb4 {[%clk 0:00:23.2]} 29. Qe7
{[%clk 0:00:21.3]} 29... Rb8 {[%clk 0:00:19.6]} 30. g3 {[%clk 0:00:12.7]} 30...
c4 {[%clk 0:00:13.6]} 31. Rd8+ {[%clk 0:00:08.2]} 31... Kg7 {[%clk 0:00:11.7]}
32. Qg5# {[%clk 0:00:07.7]} 1-0

[Event "*** Titled Tuesday Blitz"]
[Site "Chess.com"]
[Date "2020.05.19"]
[Round "7"]
[White "Funo09"]
[Black "MrTattaglia"]
[Result "1/2-1/2"]
[WhiteElo "2760"]
[BlackElo "3023"]
[TimeControl "180+1"]
[EndTime "13:20:38 PDT"]
[Termination "Game drawn by repetition"]

1. e4 {[%clk 0:03:00.9]} 1... e5 {[%clk 0:02:59.1]} 2. Nf3 {[%clk 0:03:01.1]}
2... Nc6 {[%clk 0:02:59.4]} 3. Bb5 {[%clk 0:03:01.6]} 3... a6 {[%clk 0:02:59]}
4. Ba4 {[%clk 0:03:01.9]} 4... Nf6 {[%clk 0:02:59.1]} 5. O-O {[%clk 0:03:02.4]}
5... Be7 {[%clk 0:02:58.3]} 6. Re1 {[%clk 0:03:02.7]} 6... b5 {[%clk 0:02:58.4]}
7. Bb3 {[%clk 0:03:02.4]} 7... d6 {[%clk 0:02:56.7]} 8. c3 {[%clk 0:03:02.7]}
8... O-O {[%clk 0:02:57.2]} 9. d4 {[%clk 0:03:03.2]} 9... Bg4 {[%clk 0:02:56.4]}
10. Be3 {[%clk 0:03:03.6]} 10... exd4 {[%clk 0:02:50.4]} 11. cxd4 {[%clk
0:03:04.5]} 11... Na5 {[%clk 0:02:51]} 12. h3 {[%clk 0:03:03.7]} 12... Nxb3
{[%clk 0:02:47.9]} 13. axb3 {[%clk 0:03:04.6]} 13... Bh5 {[%clk 0:02:44.8]} 14.
Nbd2 {[%clk 0:03:04.8]} 14... Bg6 {[%clk 0:02:41.4]} 15. Nh4 {[%clk 0:02:12.2]}
15... c5 {[%clk 0:02:03.8]} 16. Nxg6 {[%clk 0:02:06.5]} 16... hxg6 {[%clk
0:02:04.7]} 17. e5 {[%clk 0:01:33.8]} 17... dxe5 {[%clk 0:02:02.5]} 18. dxe5
{[%clk 0:01:34.7]} 18... Nd5 {[%clk 0:02:02.9]} 19. Ne4 {[%clk 0:01:27.5]} 19...
Nxe3 {[%clk 0:01:46]} 20. Rxe3 {[%clk 0:01:28.4]} 20... Qb6 {[%clk 0:01:44.5]}
21. Qg4 {[%clk 0:01:20.2]} 21... Rad8 {[%clk 0:01:38.3]} 22. e6 {[%clk
0:01:02.8]} 22... Qxe6 {[%clk 0:01:16.8]} 23. Qxe6 {[%clk 0:01:02.6]} 23... fxe6
{[%clk 0:01:17.7]} 24. Rxa6 {[%clk 0:01:02.9]} 24... Bf6 {[%clk 0:00:59.6]} 25.
Nxf6+ {[%clk 0:00:43.5]} 25... Rxf6 {[%clk 0:01:00.5]} 26. Rexe6 {[%clk
0:00:34.3]} 26... Rd1+ {[%clk 0:00:59.5]} 27. Kh2 {[%clk 0:00:34.5]} 27... Rxe6
{[%clk 0:00:49.9]} 28. Rxe6 {[%clk 0:00:34]} 28... Rd2 {[%clk 0:00:50.2]} 29.
Rxg6 {[%clk 0:00:24.2]} 29... Rxf2 {[%clk 0:00:43.6]} 30. Rg5 {[%clk 0:00:17.4]}
30... Rxb2 {[%clk 0:00:42.9]} 31. Rxc5 {[%clk 0:00:18.3]} 31... Rxb3 {[%clk
0:00:43.3]} 32. h4 {[%clk 0:00:17.2]} 32... Kh7 {[%clk 0:00:42.5]} 33. g3 {[%clk
0:00:16.8]} 33... Rb4 {[%clk 0:00:40.5]} 34. Kh3 {[%clk 0:00:16.6]} 34... Kg6
{[%clk 0:00:40.9]} 35. Rc6+ {[%clk 0:00:15.3]} 35... Kf5 {[%clk 0:00:36.7]} 36.
Rc7 {[%clk 0:00:15]} 36... Kf6 {[%clk 0:00:24.9]} 37. Rc6+ {[%clk 0:00:12.1]}
37... Kf7 {[%clk 0:00:25]} 38. Rc7+ {[%clk 0:00:12.6]} 38... Kg8 {[%clk
0:00:25.3]} 39. h5 {[%clk 0:00:12]} 39... Rc4 {[%clk 0:00:24.6]} 40. Rb7 {[%clk
0:00:11.9]} 40... b4 {[%clk 0:00:24.8]} 41. g4 {[%clk 0:00:12.4]} 41... Kh7
{[%clk 0:00:23]} 42. Kh4 {[%clk 0:00:12.7]} 42... Kh6 {[%clk 0:00:22.9]} 43.
Rb6+ {[%clk 0:00:12]} 43... Kh7 {[%clk 0:00:23]} 44. Rb7 {[%clk 0:00:12.9]}
44... Kh6 {[%clk 0:00:18.3]} 45. Rb6+ {[%clk 0:00:13]} 45... Kh7 {[%clk
0:00:18.4]} 46. Rb7 {[%clk 0:00:13.9]} 1/2-1/2

[Event "*** Titled Tuesday Blitz"]
[Site "Chess.com"]
[Date "2020.05.19"]
[Round "7"]
[White "S_Kalvaitis"]
[Black "IMinTheWings"]
[Result "0-1"]
[WhiteElo "2335"]
[BlackElo "2237"]
[TimeControl "180+1"]
[EndTime "13:20:38 PDT"]
[Termination "IMinTheWings won by resignation"]

1. d4 {[%clk 0:03:00.9]} 1... Nf6 {[%clk 0:02:49.6]} 2. Nf3 {[%clk 0:03:00.9]}
2... e6 {[%clk 0:02:49.9]} 3. Bf4 {[%clk 0:03:00]} 3... d5 {[%clk 0:02:49.3]} 4.
e3 {[%clk 0:02:59.9]} 4... c5 {[%clk 0:02:49.9]} 5. c3 {[%clk 0:02:58.9]} 5...
Nc6 {[%clk 0:02:50.4]} 6. Bd3 {[%clk 0:02:57.3]} 6... Nh5 {[%clk 0:02:47]} 7.
Bg3 {[%clk 0:02:56.3]} 7... Be7 {[%clk 0:02:45.4]} 8. Nbd2 {[%clk 0:02:55.4]}
8... Nxg3 {[%clk 0:02:42.5]} 9. hxg3 {[%clk 0:02:55.5]} 9... h6 {[%clk
0:02:43.4]} 10. Ne5 {[%clk 0:02:52.9]} 10... Nxe5 {[%clk 0:02:37.8]} 11. dxe5
{[%clk 0:02:53.8]} 11... Qb6 {[%clk 0:02:34.7]} 12. b3 {[%clk 0:02:50]} 12...
Bd7 {[%clk 0:02:32.5]} 13. Qg4 {[%clk 0:02:49.6]} 13... g6 {[%clk 0:02:28.5]}
14. Nf3 {[%clk 0:02:21.1]} 14... h5 {[%clk 0:02:26.1]} 15. Qf4 {[%clk
0:02:09.9]} 15... Qa5 {[%clk 0:02:17.6]} 16. Kd2 {[%clk 0:02:00.6]} 16... b5
{[%clk 0:02:08.7]} 17. Ng5 {[%clk 0:01:54.8]} 17... Bxg5 {[%clk 0:02:01.6]} 18.
Qxg5 {[%clk 0:01:55.7]} 18... Qd8 {[%clk 0:01:56.6]} 19. Qf4 {[%clk 0:01:51.8]}
19... c4 {[%clk 0:01:56.1]} 20. Bc2 {[%clk 0:01:45.4]} 20... Qe7 {[%clk
0:01:54.9]} 21. b4 {[%clk 0:01:44.9]} 21... a5 {[%clk 0:01:54.3]} 22. a3 {[%clk
0:01:44.9]} 22... Kd8 {[%clk 0:01:51.5]} 23. Qd4 {[%clk 0:01:43.1]} 23... Kc7
{[%clk 0:01:49.1]} 24. f4 {[%clk 0:01:36.9]} 24... Ra6 {[%clk 0:01:32.2]} 25. g4
{[%clk 0:01:36.2]} 25... h4 {[%clk 0:01:32.2]} 26. Ra2 {[%clk 0:00:54.1]} 26...
Rha8 {[%clk 0:01:28.3]} 27. Rha1 {[%clk 0:00:53]} 27... R8a7 {[%clk 0:00:50.1]}
28. Ke2 {[%clk 0:00:48.7]} 28... Kd8 {[%clk 0:00:44.6]} 29. Kd2 {[%clk
0:00:34.2]} 29... Ke8 {[%clk 0:00:44.6]} 30. Ke2 {[%clk 0:00:34.7]} 30... Kf8
{[%clk 0:00:44.7]} 31. Kd2 {[%clk 0:00:35.2]} 31... Kg8 {[%clk 0:00:42.4]} 32.
Ke2 {[%clk 0:00:35.5]} 32... Qd8 {[%clk 0:00:41.7]} 33. Qd1 {[%clk 0:00:32.5]}
33... Qa8 {[%clk 0:00:40.7]} 34. Qc1 {[%clk 0:00:27.6]} 34... axb4 {[%clk
0:00:38.4]} 35. cxb4 {[%clk 0:00:28.5]} 35... d4 {[%clk 0:00:38.8]} 36. exd4
{[%clk 0:00:23.6]} 36... Qxg2+ {[%clk 0:00:38.8]} 37. Ke3 {[%clk 0:00:21.8]}
37... Qg3+ {[%clk 0:00:37.5]} 38. Kd2 {[%clk 0:00:21.9]} 38... c3+ {[%clk
0:00:35]} 39. Ke2 {[%clk 0:00:21]} 39... Qxg4+ {[%clk 0:00:35.5]} 40. Kd3 {[%clk
0:00:20.6]} 40... Qf3+ {[%clk 0:00:34.2]} 41. Qe3 {[%clk 0:00:19.5]} 41... Qxe3+
{[%clk 0:00:29.4]} 42. Kxe3 {[%clk 0:00:20.4]} 42... Bc6 {[%clk 0:00:29.5]} 43.
Bb3 {[%clk 0:00:21]} 43... h3 {[%clk 0:00:22.7]} 44. Kf2 {[%clk 0:00:20.3]}
44... h2 {[%clk 0:00:22.4]} 45. d5 {[%clk 0:00:18.6]} 45... exd5 {[%clk
0:00:21.2]} 46. Bxd5 {[%clk 0:00:18.9]} 46... Bxd5 {[%clk 0:00:21.2]} 47. Rc2
{[%clk 0:00:16]} 47... h1=Q {[%clk 0:00:20.8]} 48. Rxh1 {[%clk 0:00:15.2]} 48...
Bxh1 {[%clk 0:00:21.7]} 49. Rxc3 {[%clk 0:00:15.7]} 49... Rxa3 {[%clk
0:00:22.4]} 50. Rc8+ {[%clk 0:00:16.3]} 50... Kg7 {[%clk 0:00:22.3]} 0-1

[Event "*** Titled Tuesday Blitz"]
[Site "Chess.com"]
[Date "2020.05.19"]
[Round "7"]
[White "tsvet2005"]
[Black "okriak"]
[Result "0-1"]
[WhiteElo "2512"]
[BlackElo "2753"]
[TimeControl "180+1"]
[EndTime "13:20:39 PDT"]
[Termination "okriak won by checkmate"]

1. d4 {[%clk 0:03:00.9]} 1... d6 {[%clk 0:02:58.8]} 2. e4 {[%clk 0:03:00.2]}
2... g6 {[%clk 0:02:57.6]} 3. Nc3 {[%clk 0:02:59.9]} 3... Bg7 {[%clk 0:02:58]}
4. Be3 {[%clk 0:03:00.4]} 4... a6 {[%clk 0:02:58.4]} 5. Qd2 {[%clk 0:03:00.6]}
5... b5 {[%clk 0:02:58.6]} 6. O-O-O {[%clk 0:03:00.6]} 6... Bb7 {[%clk
0:02:56.4]} 7. f3 {[%clk 0:02:58.3]} 7... Nd7 {[%clk 0:02:56.4]} 8. h4 {[%clk
0:02:57.5]} 8... h6 {[%clk 0:02:54.4]} 9. h5 {[%clk 0:02:54.4]} 9... g5 {[%clk
0:02:54]} 10. Nge2 {[%clk 0:02:54.8]} 10... Rc8 {[%clk 0:02:53.6]} 11. Ng3
{[%clk 0:02:54.5]} 11... e6 {[%clk 0:02:53.7]} 12. d5 {[%clk 0:02:52.4]} 12...
Ne5 {[%clk 0:02:41]} 13. f4 {[%clk 0:02:37]} 13... gxf4 {[%clk 0:02:30.7]} 14.
Bxf4 {[%clk 0:02:37.9]} 14... Qd7 {[%clk 0:02:24.8]} 15. dxe6 {[%clk 0:02:35.8]}
15... fxe6 {[%clk 0:02:24.4]} 16. Be2 {[%clk 0:02:16.9]} 16... Ne7 {[%clk
0:02:21.5]} 17. Rdf1 {[%clk 0:01:38.4]} 17... Qc6 {[%clk 0:02:14]} 18. Nd1
{[%clk 0:01:33.3]} 18... Kd7 {[%clk 0:02:13.5]} 19. Ne3 {[%clk 0:01:32.4]} 19...
Rcf8 {[%clk 0:02:12.6]} 20. Kb1 {[%clk 0:01:30.9]} 20... Kc8 {[%clk 0:02:11.3]}
21. Ng4 {[%clk 0:01:24.8]} 21... Nc4 {[%clk 0:02:09.4]} 22. Bxc4 {[%clk
0:01:24]} 22... Qxc4 {[%clk 0:02:09.3]} 23. b3 {[%clk 0:01:16.5]} 23... Qc6
{[%clk 0:02:08.1]} 24. Bxh6 {[%clk 0:01:15]} 24... Rxf1+ {[%clk 0:02:02.3]} 25.
Rxf1 {[%clk 0:01:14.3]} 25... Bc3 {[%clk 0:01:48.2]} 26. Qd3 {[%clk 0:01:07.5]}
26... b4 {[%clk 0:01:43.9]} 27. Rf8+ {[%clk 0:00:58.2]} 27... Rxf8 {[%clk
0:01:40.6]} 28. Bxf8 {[%clk 0:00:59.1]} 28... Qe8 {[%clk 0:01:40.2]} 29. Bh6
{[%clk 0:00:56.5]} 29... Qg8 {[%clk 0:01:37.7]} 30. Qf3 {[%clk 0:00:52.9]} 30...
Kd7 {[%clk 0:01:35]} 31. Bc1 {[%clk 0:00:49.9]} 31... Qh8 {[%clk 0:01:22.1]} 32.
Qf7 {[%clk 0:00:43.4]} 32... Qd4 {[%clk 0:01:11]} 33. h6 {[%clk 0:00:33.5]}
33... Qd1 {[%clk 0:00:44.1]} 34. Nf2 {[%clk 0:00:32.6]} 34... Qe1 {[%clk
0:00:36.5]} 35. Qf3 {[%clk 0:00:26.9]} 35... Be5 {[%clk 0:00:32.9]} 36. h7
{[%clk 0:00:20.9]} 36... Bh8 {[%clk 0:00:29.5]} 37. Nh5 {[%clk 0:00:12.3]} 37...
Nf5 {[%clk 0:00:22.4]} 38. Nd3 {[%clk 0:00:07.7]} 38... Qh1 {[%clk 0:00:21.1]}
39. Nhf4 {[%clk 0:00:05.9]} 39... Nd4 {[%clk 0:00:20.8]} 40. Qe3 {[%clk
0:00:04.5]} 40... Nb5 {[%clk 0:00:20.8]} 41. Ng6 {[%clk 0:00:04.7]} 41... Na3#
{[%clk 0:00:20.2]} 0-1

[Event "*** Titled Tuesday Blitz"]
[Site "Chess.com"]
[Date "2020.05.19"]
[Round "7"]
[White "robertofabregas"]
[Black "Charlottemillard17"]
[Result "1-0"]
[WhiteElo "2111"]
[BlackElo "1418"]
[TimeControl "180+1"]
[EndTime "13:20:39 PDT"]
[Termination "robertofabregas won by checkmate"]

1. c4 {[%clk 0:03:00.9]} 1... c6 {[%clk 0:02:55.8]} 2. Nc3 {[%clk 0:03:00.1]}
2... d6 {[%clk 0:02:55]} 3. g3 {[%clk 0:03:00.3]} 3... Nf6 {[%clk 0:02:54.8]} 4.
Bg2 {[%clk 0:02:59.9]} 4... e6 {[%clk 0:02:54.7]} 5. d4 {[%clk 0:03:00.2]} 5...
d5 {[%clk 0:02:54.7]} 6. Nf3 {[%clk 0:02:58.8]} 6... Be7 {[%clk 0:02:54.3]} 7.
O-O {[%clk 0:02:59.3]} 7... O-O {[%clk 0:02:53.7]} 8. Re1 {[%clk 0:02:58.2]}
8... h6 {[%clk 0:02:53.2]} 9. e4 {[%clk 0:02:55]} 9... dxc4 {[%clk 0:02:43.1]}
10. a4 {[%clk 0:02:42.9]} 10... Nbd7 {[%clk 0:02:41.6]} 11. Ne5 {[%clk
0:02:40.2]} 11... Nxe5 {[%clk 0:02:26.7]} 12. dxe5 {[%clk 0:02:39.3]} 12... Qxd1
{[%clk 0:02:26.9]} 13. Nxd1 {[%clk 0:02:35.2]} 13... Ng4 {[%clk 0:02:25.8]} 14.
f4 {[%clk 0:02:14.5]} 14... Bc5+ {[%clk 0:02:22.8]} 15. Be3 {[%clk 0:02:14.9]}
15... Nxe3 {[%clk 0:02:15.8]} 16. Nxe3 {[%clk 0:02:15.3]} 16... Rd8 {[%clk
0:02:15.2]} 17. Kf1 {[%clk 0:01:59]} 17... Bxe3 {[%clk 0:02:05.7]} 18. Rxe3
{[%clk 0:01:58.6]} 18... b5 {[%clk 0:02:05.3]} 19. f5 {[%clk 0:01:53.1]} 19...
exf5 {[%clk 0:02:04.1]} 20. exf5 {[%clk 0:01:53.3]} 20... Bxf5 {[%clk
0:02:03.8]} 21. Bxc6 {[%clk 0:01:53.6]} 21... Bd3+ {[%clk 0:01:54.2]} 22. Kf2
{[%clk 0:01:45.7]} 22... Rac8 {[%clk 0:01:50.7]} 23. axb5 {[%clk 0:01:43]} 23...
Rc7 {[%clk 0:01:43.4]} 24. e6 {[%clk 0:01:18.2]} 24... fxe6 {[%clk 0:01:36.1]}
25. Rxe6 {[%clk 0:01:07.1]} 25... Rf7+ {[%clk 0:01:35.4]} 26. Kg2 {[%clk
0:01:04]} 26... Bf5 {[%clk 0:01:28.5]} 27. Re5 {[%clk 0:00:50.7]} 27... Rd2+
{[%clk 0:01:27]} 28. Kg1 {[%clk 0:00:50.2]} 28... Rxb2 {[%clk 0:01:21.2]} 29.
Bd5 {[%clk 0:00:48.1]} 29... Bd3 {[%clk 0:01:03.6]} 30. Rxa7 {[%clk 0:00:37.7]}
30... Rb1+ {[%clk 0:01:00.3]} 31. Kg2 {[%clk 0:00:37.9]} 31... Rb2+ {[%clk
0:00:59.5]} 32. Kh3 {[%clk 0:00:36.4]} 32... Bf1+ {[%clk 0:00:58.9]} 33. Kg4
{[%clk 0:00:29.7]} 33... h5+ {[%clk 0:00:24.5]} 34. Kg5 {[%clk 0:00:20.4]} 34...
Rf2 {[%clk 0:00:14.2]} 35. Re8+ {[%clk 0:00:17.3]} 35... Kh7 {[%clk 0:00:12.6]}
36. Rxf7 {[%clk 0:00:16.6]} 36... Rxf7 {[%clk 0:00:11.8]} 37. Bxf7 {[%clk
0:00:17.1]} 37... c3 {[%clk 0:00:06]} 38. Bg6# {[%clk 0:00:13.3]} 1-0